fUSD/lending_fUSD_20241209
["ID","MTS","AMOUNT","RATE_DAILY","PERIOD"]
[344749536,1733766632712,-1500.0,0.00011087,2]
[344749538,1733766632721,-30793.93717219,0.0001109,3]
[344749539,1733766632731,-500.0,0.00011099,2]
[344749540,1733766632740,-1939.5671412,0.00011099,2]
[344749541,1733766632751,-150.0,0.00011099,2]
[344749542,1733766632764,-1000.0,0.000111,5]
[344749543,1733766632773,-1000.0,0.000111,6]
[344749544,1733766632782,-1000.0,0.000111,2]
[344749545,1733766632792,-162506.46204423,0.000111,2]
[344749547,1733766632811,-9309.300001,0.000111,2]
[344749550,1733766632826,-4533.91972168,0.000111,2]
[344749562,1733766638267,-176.68063025,0.00011,2]
[344749563,1733766638276,-2062.39697551,0.000111,2]
[344749564,1733766638487,-616.86624995,0.000111,2]
[344749565,1733766638499,-2238.99168339,0.000111,2]
[344749566,1733766638514,-72798326.7098345,0.000111,2]
[344749567,1733766638526,-5645.29615168,0.000111,2]
[344749568,1733766638553,-1860.04352126,0.000111,2]
[344749569,1733766638565,-500.0,0.000111,2]
[344749570,1733766638652,-457.55087041,0.000111,2]
[344749575,1733766640172,-379.98248739,0.000111,2]
[344749576,1733766640209,-37002.39082898,0.000111,2]
[344749577,1733766640335,-959.85,0.000111,2]
[344749578,1733766640376,-293.716423,0.000111,2]
[344749579,1733766640388,-14228.11893754,0.000111,2]
[344749580,1733766640400,-490.62,0.000111,2]
[344749581,1733766640411,-25659.4665498,0.000111,2]
[344749590,1733766643357,-522.83456263,0.000111,2]
[344749591,1733766643369,-2531.913976,0.000111,2]
[344749592,1733766643391,-25277.16102888,0.000111,2]
[344749593,1733766643402,-9557.5005438,0.000111,2]
[344749594,1733766643414,-160235.03891464,0.000111,2]
[344749595,1733766643425,-2396.5189944,0.000111,2]
[344749596,1733766643436,-1836.16629,0.000111,2]
[344749597,1733766643447,-2653.491882,0.000111,2]
[344749598,1733766643458,-679.30499915,0.000111,2]
[344749599,1733766643476,-760.17523282,0.000111,2]
[344749600,1733766643488,-3000.66200051,0.000111,2]
[344749601,1733766643499,-4939.21150524,0.000111,2]
[344749602,1733766643527,-241350.000005,0.000111,2]
[344749603,1733766643542,-1127.44914269,0.000111,2]
[344749604,1733766643612,-355.708,0.000111,2]
[344749609,1733766643822,-3692.87231439,0.000111,2]
[344749611,1733766643871,-5998.01309989,0.000111,2]
[344749612,1733766643883,-9560.33923055,0.000111,2]
[344749613,1733766643894,-5626.44518537,0.000111,2]
[344749614,1733766643906,-511.989998,0.000111,2]
[344749615,1733766643917,-6844.0,0.000111,2]
[344749623,1733766646503,-325.91,0.000111,2]
[344749641,1733766710840,151.61663114,0.00010968,2]
[344749642,1733766742722,1573.46418045,0.00010967,2]
[344749643,1733766853042,4800.0,0.00010989,2]
[344749644,1733766889907,1500.0,0.00010642,2]
[344749645,1733766902966,155.0,0.00010642,30]
[344749646,1733766904091,577.0,0.00010642,30]
[344749647,1733766904126,166.6664805,0.00010642,30]
[344749648,1733766904299,577.0,0.00011617,30]
[344749649,1733766904608,577.0,0.00012592,30]
[344749650,1733766905026,577.0,0.00013566,30]
[344749651,1733766936855,166.84,0.00010944,2]
[344749652,1733766951888,150.0,0.00010959,2]
[344749653,1733767042559,1666.32,0.00010579,2]
[344749659,1733767058887,1000.0,0.00010579,2]
[344749663,1733767113987,154.98,8.361e-05,2]
[344749665,1733767177018,300.0,0.00010415,2]
[344749666,1733767203436,155.0,0.00010642,30]
[344749667,1733767204879,461.0,0.00010642,30]
[344749668,1733767206220,461.0,0.00011617,30]
[344749669,1733767206321,461.0,0.00012592,30]
[344749670,1733767206573,461.0,0.00013566,30]
[344749671,1733767263297,632.41,8.523e-05,2]
[344749672,1733767263639,632.41,0.00010787,2]
[344749673,1733767293494,250.0,0.00010482,2]
[344749674,1733767294689,150.0,0.00010482,2]
[344749675,1733767374298,176.63,0.00010983,2]
[344749676,1733767391143,1000.0,0.00010499,2]
[344749677,1733767391539,-2031.32085797,0.00011,2]
[344749678,1733767391564,-184.35360923,0.00011002,2]
[344749679,1733767391588,-166.39663466,0.00011002,2]
[344749680,1733767391614,-377.75497576,0.00011002,2]
[344749681,1733767391639,-206.99686305,0.00011002,2]
[344749682,1733767391663,-158.03,0.00011024,2]
[344749683,1733767391687,-1054.45,0.00011025,2]
[344749684,1733767391713,-11258.16,0.00011033,2]
[344749685,1733767391739,-1819.923,0.00011033,2]
[344749686,1733767391765,-23900.0,0.00011066,2]
[344749687,1733767391790,-150.0,0.00011067,2]
[344749688,1733767391814,-6129.0,0.00011068,2]
[344749689,1733767391839,-6226.0,0.00011068,2]
[344749690,1733767392022,-1000.0,0.00011099,2]
[344749691,1733767392054,-167.70528516,0.00011099,2]
[344749692,1733767392081,-500.0,0.00011099,2]
[344749693,1733767392105,-500.0,0.00011099,2]
[344749694,1733767392129,-158.0651198,0.00011099,2]
[344749695,1733767392153,-500.0,0.00011099,2]
[344749696,1733767392177,-500.0,0.00011099,2]
[344749697,1733767392203,-500.0,0.00011099,2]
[344749698,1733767392229,-500.0,0.00011099,2]
[344749699,1733767392254,-500.0,0.00011099,2]
[344749700,1733767392278,-420.92729314,0.00011099,2]
[344749701,1733767392303,-500.0,0.00011099,2]
[344749702,1733767392328,-500.0,0.00011099,2]
[344749703,1733767392354,-395.0,0.00011099,2]
[344749704,1733767392381,-500.0,0.00011099,2]
[344749705,1733767392407,-500.0,0.00011099,2]
[344749706,1733767392432,-500.0,0.00011099,2]
[344749707,1733767392460,-500.0,0.00011099,2]
[344749708,1733767392486,-500.0,0.00011099,2]
[344749709,1733767392513,-500.0,0.00011099,2]
[344749710,1733767392539,-500.0,0.00011099,2]
[344749711,1733767392566,-541.07570913,0.00011099,2]
[344749712,1733767392591,-500.0,0.00011099,2]
[344749713,1733767392616,-500.0,0.00011099,2]
[344749714,1733767392641,-500.0,0.00011099,2]
[344749715,1733767392670,-500.0,0.00011099,2]
[344749716,1733767392695,-266.11,0.00011099,2]
[344749717,1733767392727,-13984768.0865679,0.000111,2]
[344749750,1733767832416,-429.31,0.00011022,2]
[344749751,1733767832426,-310.25,0.00011064,2]
[344749752,1733767832436,-250.0,0.00011088,2]
[344749753,1733767832446,-689.88009046,0.00011099,2]
[344749754,1733767832456,-150.0,0.00011099,2]
[344749755,1733767832465,-11483.13912243,0.000111,2]
[344749756,1733767832529,-55128.13022547,0.000111,2]
[344749757,1733767832539,-3000.0,0.000111,2]
[344749758,1733767832548,-154.53,0.00011135,2]
[344749759,1733767832558,-750.0,0.00011148,2]
[344749760,1733767832567,-2000.0,0.00011224,2]
[344749761,1733767832578,-605.0,0.00011281,2]
[344749762,1733767832587,-150.99,0.00011281,2]
[344749763,1733767832597,-8401.47,0.00011281,2]
[344749764,1733767832606,-166.95,0.00011389,2]
[344749765,1733767832616,-420.29021763,0.00011422,2]
[344749766,1733767832626,-168.71,0.0001153,2]
[344749767,1733767832635,-2000.0,0.00011639,2]
[344749768,1733767832645,-1000.0,0.00011812,2]
[344749769,1733767832655,-1000.0,0.00011901,2]
[344749770,1733767832665,-19016.51193688,0.00012,2]
[344749771,1733767832674,-166.95,0.00012016,2]
[344749772,1733767832684,-2000.0,0.00012054,2]
[344749773,1733767832694,-154.53,0.00012063,2]
[344749774,1733767832704,-203.0,0.00012153,2]
[344749775,1733767832714,-200.0,0.00012256,2]
[344749776,1733767832724,-8661.92789012,0.00012257,2]
[344749777,1733767832736,-61722.70260988,0.00012257,2]
[344749778,1733767832745,-1000.0,0.00012257,2]
[344749779,1733767832755,-500.0,0.00012257,2]
[344749780,1733767832764,-195.6,0.00012304,2]
[344749781,1733767832774,-195.6,0.00012308,2]
[344749782,1733767832784,-195.6,0.00012311,2]
[344749783,1733767832794,-195.6,0.00012314,2]
[344749785,1733767832803,-195.6,0.00012317,2]
[344749787,1733767832812,-195.6,0.00012321,2]
[344749789,1733767832824,-195.6,0.00012324,2]
[344749790,1733767832834,-195.6,0.00012327,2]
[344749791,1733767832843,-195.6,0.0001233,2]
[344749792,1733767832853,-195.6,0.00012333,2]
[344749793,1733767832863,-195.6,0.00012337,2]
[344749794,1733767832873,-195.6,0.0001234,2]
[344749795,1733767832883,-195.6,0.00012343,2]
[344749796,1733767832893,-195.6,0.00012346,2]
[344749797,1733767832902,-195.6,0.0001235,2]
[344749798,1733767832912,-195.6,0.00012353,2]
[344749799,1733767832922,-195.6,0.00012356,2]
[344749800,1733767832932,-37475.63792293,0.00012357,2]
[344749801,1733767832944,-1774.01012085,0.00012357,2]
[344749802,1733767832956,-7924.49768377,0.00012357,2]
[344749803,1733767832975,-1948.5483,0.00012357,2]
[344749805,1733767838332,-19500.0,0.00012357,2]
[344749806,1733767838343,-1329.9999999,0.00012357,2]
[344749807,1733767838355,-2150.92383612,0.00012357,2]
[344749808,1733767838366,-1267.146473,0.00012357,2]
[344749809,1733767838377,-362.32011654,0.00012357,2]
[344749810,1733767838388,-743.03083131,0.00012357,2]
[344749811,1733767838397,-195.6,0.00012359,2]
[344749812,1733767838407,-195.6,0.00012363,2]
[344749813,1733767838416,-195.6,0.00012366,2]
[344749814,1733767838425,-259.5147623,0.00012373,2]
[344749815,1733767838450,-4740.4852377,0.00012373,2]
[344749816,1733767838459,-206.99686305,0.00012373,2]
[344749817,1733767838469,-2499.999999,0.00012394,2]
[344749818,1733767838479,-1204.06507262,0.00012399,2]
[344749819,1733767838488,-1129.15282763,0.00012399,2]
[344749820,1733767838514,-74.91224495,0.00012399,2]
[344749821,1733767838524,-1204.06507258,0.00012399,2]
[344749822,1733767838533,-739.94347997,0.00012399,2]
[344749823,1733767838545,-464.12159261,0.00012399,2]
[344749824,1733767838555,-1204.06507258,0.00012399,2]
[344749825,1733767838564,-1204.06507258,0.00012399,2]
[344749826,1733767838575,-482.88511176,0.00012399,2]
[344749827,1733767838586,-721.17996082,0.00012399,2]
[344749828,1733767838596,-1204.06507258,0.00012399,2]
[344749830,1733767838605,-1204.06507258,0.00012399,2]
[344749832,1733767838614,-840.59876072,0.00012399,2]
[344749834,1733767838623,-840.59876066,0.00012399,2]
[344749836,1733767838633,-840.59876066,0.00012399,2]
[344749838,1733767838643,-840.59876066,0.00012399,2]
[344749840,1733767838652,-840.59876066,0.00012399,2]
[344749842,1733767838662,-1204.06507258,0.000124,2]
[344749844,1733767838672,-840.59876066,0.00012417,2]
[344749846,1733767838681,-312.0,0.00012438,2]
[344749848,1733767838691,-840.59876066,0.00012448,2]
[344749850,1733767838700,-2000.0,0.0001247,2]
[344749852,1733767838709,-516.41734786,0.00012472,2]
[344749855,1733767838730,-9910.00026,0.00012472,2]
[344749857,1733767838747,-10915.76260336,0.00012472,2]
[344749912,1733767840363,-280.325,0.00011471,2]
[344749913,1733767840375,-139.96521763,0.00011471,2]
[344749914,1733767840385,-8749.68904937,0.00012472,2]
[344749915,1733767840396,-9778.9,0.00012472,2]
[344749916,1733767840429,-255846.43073941,0.00012472,2]
[344749917,1733767840438,-500.0,0.00012472,2]
[344749918,1733767840447,-604.00841213,0.00012472,2]
[344749919,1733767840457,-20000.0,0.00012473,2]
[344749920,1733767840466,-4090053.92,0.00012473,5]
[344749921,1733767840475,-588051.73,0.00012473,5]
[344749922,1733767840484,-2888.08,0.00012473,5]
[344749923,1733767840493,-275.11083568,0.00012473,2]
[344749924,1733767840502,-500.0,0.00012473,2]
[344749925,1733767840511,-503.64091238,0.00012473,2]
[344749926,1733767840521,-500.0,0.00012473,2]
[344749927,1733767840530,-840.59876066,0.0001248,2]
[344749928,1733767840540,-1676.16342755,0.00012497,3]
[344749932,1733767841213,-425.39999988,0.00012497,3]
[344749933,1733767841662,-375.1404095,0.00012497,3]
[344749934,1733767841672,-12494.33123423,0.00012498,2]
[344749935,1733767843404,-11096.73518086,0.00012498,2]
[344749936,1733767843414,-14000.0,0.000125,2]
[344749937,1733767843424,-1026.66917484,0.000125,2]
[344749938,1733767843433,-840.59876066,0.00012511,2]
[344749939,1733767843443,-840.59876066,0.00012543,2]
[344749940,1733767843451,-5000.0,0.00012603,2]
[344749941,1733767843461,-9959.26095764,0.00012603,2]
[344749944,1733767844098,-51626.14904236,0.00012603,2]
[344749945,1733767844108,-166.95,0.00012643,2]
[344749946,1733767844117,-167.43232862,0.00012873,2]
[344749947,1733767844127,-500.0,0.00012873,2]
[344749948,1733767844136,-154.941873,0.00012876,2]
[344749949,1733767844146,-295.548691,0.00012876,2]
[344749950,1733767844155,-295.548691,0.00012876,2]
[344749951,1733767844164,-295.548691,0.00012876,2]
[344749952,1733767844174,-295.548691,0.00012876,2]
[344749953,1733767844186,-295.548691,0.00012876,2]
[344749954,1733767844196,-295.548691,0.00012876,2]
[344749955,1733767844205,-295.548691,0.00012876,2]
[344749956,1733767844214,-295.548691,0.00012876,2]
[344749957,1733767844224,-295.548691,0.00012876,2]
[344749958,1733767844234,-295.548691,0.00012876,2]
[344749959,1733767844243,-295.548691,0.00012876,2]
[344749960,1733767844253,-295.548691,0.00012876,2]
[344749961,1733767844265,-295.548691,0.00012876,2]
[344749962,1733767844275,-295.548691,0.00012876,2]
[344749963,1733767844284,-295.548691,0.00012876,2]
[344749964,1733767844294,-295.548691,0.00012876,2]
[344749965,1733767844303,-295.548691,0.00012876,2]
[344749966,1733767844313,-295.548691,0.00012876,2]
[344749967,1733767844322,-295.548691,0.00012876,2]
[344749968,1733767844337,-295.548691,0.00012876,2]
[344749969,1733767844347,-500.0,0.00012876,2]
[344749970,1733767844358,-500.0,0.00012876,2]
[344749971,1733767844368,-500.0,0.00012876,2]
[344749972,1733767844379,-500.0,0.00012876,2]
[344749973,1733767844389,-500.0,0.00012876,2]
[344749974,1733767844399,-500.0,0.00012876,2]
[344749975,1733767844409,-501.71376749,0.00012876,2]
[344749976,1733767844419,-500.0,0.00012876,2]
[344749977,1733767844428,-500.0,0.00012876,2]
[344749978,1733767844438,-500.0,0.00012876,2]
[344749979,1733767844448,-500.0,0.00012876,2]
[344749980,1733767844458,-500.0,0.00012876,2]
[344749981,1733767844468,-500.0,0.00012876,2]
[344749982,1733767844478,-550.51460037,0.00012876,2]
[344749983,1733767844488,-500.0,0.00012876,2]
[344749984,1733767844498,-230.23230778,0.00012876,2]
[344749985,1733767844508,-248.71961877,0.00012876,2]
[344749986,1733767844518,-501.61692368,0.00012876,2]
[344749987,1733767844528,-500.0,0.00012876,2]
[344749988,1733767844538,-500.0,0.00012876,2]
[344749989,1733767844548,-1100.593295,0.00012876,2]
[344749990,1733767844558,-1100.593295,0.00012876,2]
[344749991,1733767844568,-1100.593295,0.00012876,2]
[344749992,1733767844577,-1100.593295,0.00012876,2]
[344749993,1733767844592,-1100.593295,0.00012876,2]
[344749994,1733767844602,-1100.593295,0.00012876,2]
[344749995,1733767844612,-1100.593295,0.00012876,2]
[344749996,1733767844621,-1100.593295,0.00012876,2]
[344749997,1733767844632,-322.42640164,0.00012876,2]
[344749998,1733767844642,-1100.593295,0.00012876,2]
[344749999,1733767844652,-1100.593295,0.00012876,2]
[344750000,1733767844663,-1100.593295,0.00012876,2]
[344750001,1733767844673,-1100.593295,0.00012876,2]
[344750002,1733767844683,-1100.593295,0.00012876,2]
[344750003,1733767844692,-1100.593295,0.00012876,2]
[344750004,1733767844701,-1100.593295,0.00012876,2]
[344750005,1733767844711,-1100.593295,0.00012876,2]
[344750006,1733767844721,-1100.593295,0.00012876,2]
[344750007,1733767844731,-1100.593295,0.00012876,2]
[344750008,1733767844741,-1100.593295,0.00012876,2]
[344750009,1733767844751,-1100.593295,0.00012876,2]
[344750010,1733767844760,-500.0,0.00012876,2]
[344750011,1733767844770,-500.0,0.00012876,2]
[344750012,1733767844779,-500.0,0.00012876,2]
[344750013,1733767844789,-500.0,0.00012876,2]
[344750014,1733767844799,-500.6325851,0.00012876,2]
[344750015,1733767844809,-500.0,0.00012876,2]
[344750016,1733767844819,-502.85688716,0.00012876,2]
[344750017,1733767844831,-649.13054297,0.00012876,2]
[344750018,1733767844843,-500.0,0.00012876,2]
[344750019,1733767844853,-500.0,0.00012876,2]
[344750020,1733767844863,-500.0,0.00012876,2]
[344750021,1733767844873,-500.0,0.00012876,2]
[344750022,1733767844882,-500.0,0.00012876,2]
[344750023,1733767844892,-500.0,0.00012876,2]
[344750024,1733767844902,-500.0,0.00012876,2]
[344750025,1733767844912,-500.0,0.00012876,2]
[344750026,1733767844922,-420.25376461,0.00012876,2]
[344750027,1733767844932,-500.0,0.00012876,2]
[344750028,1733767844941,-500.0,0.00012876,2]
[344750029,1733767844951,-500.0,0.00012876,2]
[344750030,1733767844960,-500.0,0.00012876,2]
[344750031,1733767844970,-500.0,0.00012876,2]
[344750032,1733767844980,-500.0,0.00012876,2]
[344750033,1733767844990,-500.0,0.00012876,2]
[344750034,1733767845000,-539.93262012,0.00012876,2]
[344750035,1733767845010,-500.0,0.00012876,2]
[344750036,1733767845020,-500.0,0.00012876,2]
[344750037,1733767845030,-500.0,0.00012876,2]
[344750038,1733767845039,-500.0,0.00012876,2]
[344750039,1733767845049,-156.824474,0.00012876,2]
[344750040,1733767845059,-500.0,0.00012876,2]
[344750041,1733767845068,-156.824474,0.00012876,2]
[344750042,1733767845077,-511.77303578,0.00012876,2]
[344750043,1733767845091,-500.0,0.00012876,2]
[344750044,1733767845100,-156.824474,0.00012876,2]
[344750045,1733767845110,-502.12668412,0.00012876,2]
[344750046,1733767845120,-156.824474,0.00012876,2]
[344750047,1733767845131,-156.824474,0.00012876,2]
[344750048,1733767845141,-156.824474,0.00012876,2]
[344750049,1733767845151,-156.824474,0.00012876,2]
[344750050,1733767845162,-156.824474,0.00012876,2]
[344750051,1733767845172,-156.824474,0.00012876,2]
[344750052,1733767845184,-156.824474,0.00012876,2]
[344750053,1733767845195,-500.0,0.00012876,2]
[344750054,1733767845205,-500.0,0.00012876,2]
[344750055,1733767845214,-500.0,0.00012876,2]
[344750056,1733767845224,-500.0,0.00012876,2]
[344750057,1733767845234,-500.0,0.00012876,2]
[344750058,1733767845244,-500.0,0.00012876,2]
[344750059,1733767845253,-501.95340938,0.00012876,2]
[344750060,1733767845263,-150.0,0.00012876,2]
[344750061,1733767845273,-150.0,0.00012876,2]
[344750062,1733767845283,-150.0,0.00012876,2]
[344750063,1733767845292,-150.0,0.00012876,2]
[344750064,1733767845301,-157.84611021,0.00012876,2]
[344750065,1733767845310,-500.0,0.00012876,2]
[344750066,1733767845319,-500.0,0.00012876,2]
[344750067,1733767845328,-191.16456031,0.00012876,2]
[344750068,1733767845349,-5000.0,0.00012876,2]
[344750069,1733767845359,-500.0,0.00012876,2]
[344750070,1733767845368,-500.0,0.00012876,2]
[344750071,1733767845377,-500.0,0.00012876,2]
[344750072,1733767845387,-500.0,0.00012876,2]
[344750073,1733767845396,-500.0,0.00012876,2]
[344750074,1733767845406,-500.0,0.00012876,2]
[344750075,1733767845415,-500.0,0.00012876,2]
[344750076,1733767845424,-500.0,0.00012876,2]
[344750077,1733767845434,-500.0,0.00012876,2]
[344750078,1733767845443,-500.0,0.00012876,2]
[344750079,1733767845453,-500.0,0.00012876,2]
[344750080,1733767845462,-500.0,0.00012876,2]
[344750081,1733767845471,-638.39149147,0.00012876,2]
[344750082,1733767845480,-500.0,0.00012876,2]
[344750083,1733767845490,-500.0,0.00012876,2]
[344750084,1733767845499,-500.0,0.00012876,2]
[344750085,1733767845509,-500.2095238,0.00012876,2]
[344750086,1733767845518,-500.0,0.00012876,2]
[344750087,1733767845527,-176.94,0.00012876,2]
[344750088,1733767845537,-500.0,0.00012876,2]
[344750089,1733767845546,-500.0,0.00012876,2]
[344750090,1733767845556,-500.0,0.00012876,2]
[344750091,1733767845566,-500.0,0.00012876,2]
[344750092,1733767845576,-500.0,0.00012876,2]
[344750093,1733767845585,-500.0,0.00012876,2]
[344750094,1733767845595,-500.0,0.00012876,2]
[344750095,1733767845605,-500.0,0.00012876,2]
[344750096,1733767845614,-500.0,0.00012876,2]
[344750097,1733767845623,-500.0,0.00012876,2]
[344750098,1733767845633,-500.0,0.00012876,2]
[344750099,1733767845643,-500.0,0.00012876,2]
[344750100,1733767845652,-560.03,0.00012876,2]
[344750101,1733767845662,-500.0,0.00012876,2]
[344750102,1733767845671,-500.0,0.00012876,2]
[344750103,1733767845680,-500.0,0.00012876,2]
[344750104,1733767845810,-500.0,0.00012876,2]
[344750105,1733767845820,-500.0,0.00012876,2]
[344750106,1733767845835,-500.0,0.00012876,2]
[344750107,1733767845845,-524.38,0.00012876,2]
[344750108,1733767845855,-500.0,0.00012876,2]
[344750109,1733767845864,-500.0,0.00012876,2]
[344750110,1733767845873,-407.18800322,0.00012876,2]
[344750111,1733767845883,-511.16,0.00012876,2]
[344750112,1733767845892,-511.16,0.00012876,2]
[344750113,1733767845901,-511.16,0.00012876,2]
[344750114,1733767845911,-397.73452103,0.00012876,2]
[344750115,1733767845920,-511.16,0.00012876,2]
[344750116,1733767845930,-511.16,0.00012876,2]
[344750117,1733767845940,-511.16,0.00012876,2]
[344750118,1733767845949,-511.16,0.00012876,2]
[344750119,1733767845959,-511.16,0.00012876,2]
[344750120,1733767845969,-511.16,0.00012876,2]
[344750121,1733767845978,-511.16,0.00012876,2]
[344750122,1733767845987,-511.16,0.00012876,2]
[344750123,1733767845996,-511.16,0.00012876,2]
[344750124,1733767846005,-511.16,0.00012876,2]
[344750125,1733767846015,-500.0,0.00012876,2]
[344750126,1733767846023,-500.0,0.00012876,2]
[344750127,1733767846032,-511.16,0.00012876,2]
[344750128,1733767846042,-511.16,0.00012876,2]
[344750129,1733767846051,-511.16,0.00012876,2]
[344750130,1733767846060,-500.0,0.00012876,2]
[344750131,1733767846070,-511.16,0.00012876,2]
[344750132,1733767846084,-511.16,0.00012876,2]
[344750133,1733767846093,-500.0,0.00012876,2]
[344750134,1733767846102,-511.16,0.00012876,2]
[344750135,1733767846111,-511.16,0.00012876,2]
[344750136,1733767846120,-500.0,0.00012876,2]
[344750137,1733767846129,-511.16,0.00012876,2]
[344750138,1733767846138,-500.0,0.00012876,2]
[344750139,1733767846147,-500.0,0.00012876,2]
[344750140,1733767846157,-511.16,0.00012876,2]
[344750141,1733767846166,-500.0,0.00012876,2]
[344750142,1733767846175,-511.16,0.00012876,2]
[344750143,1733767846189,-500.0,0.00012876,2]
[344750144,1733767846199,-511.29,0.00012876,2]
[344750145,1733767846208,-500.0,0.00012876,2]
[344750146,1733767846217,-500.0,0.00012876,2]
[344750147,1733767846229,-500.0,0.00012876,2]
[344750148,1733767846239,-500.0,0.00012876,2]
[344750149,1733767846248,-500.0,0.00012876,2]
[344750150,1733767846257,-500.0,0.00012876,2]
[344750151,1733767846267,-500.0,0.00012876,2]
[344750152,1733767846276,-500.0,0.00012876,2]
[344750153,1733767846285,-500.0,0.00012876,2]
[344750154,1733767846295,-318.11,0.00012876,2]
[344750155,1733767846304,-500.0,0.00012876,2]
[344750156,1733767846314,-500.0,0.00012876,2]
[344750157,1733767846323,-505.60660759,0.00012876,2]
[344750158,1733767846335,-500.0,0.00012876,2]
[344750159,1733767846345,-500.0,0.00012876,2]
[344750160,1733767846354,-500.0,0.00012876,2]
[344750161,1733767846363,-500.0,0.00012876,2]
[344750162,1733767846373,-500.0,0.00012876,2]
[344750163,1733767846382,-500.0,0.00012876,2]
[344750164,1733767846391,-500.0,0.00012876,2]
[344750165,1733767846400,-500.0,0.00012876,2]
[344750166,1733767846410,-500.0,0.00012876,2]
[344750167,1733767846419,-500.0,0.00012876,2]
[344750168,1733767846428,-500.0,0.00012876,2]
[344750169,1733767846438,-500.0,0.00012876,2]
[344750170,1733767846447,-500.0,0.00012876,2]
[344750171,1733767846456,-500.0,0.00012876,2]
[344750172,1733767846465,-500.0,0.00012876,2]
[344750173,1733767846475,-500.0,0.00012876,2]
[344750174,1733767846484,-500.0,0.00012876,2]
[344750175,1733767846493,-500.0,0.00012876,2]
[344750176,1733767846502,-500.0,0.00012876,2]
[344750177,1733767846512,-500.0,0.00012876,2]
[344750178,1733767846521,-500.0,0.00012876,2]
[344750179,1733767846530,-500.0,0.00012876,2]
[344750180,1733767846540,-500.0,0.00012876,2]
[344750181,1733767846549,-500.0,0.00012876,2]
[344750182,1733767846559,-500.0,0.00012876,2]
[344750183,1733767846568,-359.98,0.00012876,2]
[344750184,1733767846578,-500.0,0.00012876,2]
[344750185,1733767846591,-500.0,0.00012876,2]
[344750186,1733767846600,-500.0,0.00012876,2]
[344750187,1733767846611,-500.0,0.00012876,2]
[344750188,1733767846620,-500.0,0.00012876,2]
[344750189,1733767846630,-500.0,0.00012876,2]
[344750190,1733767846639,-500.0,0.00012876,2]
[344750191,1733767846648,-500.0,0.00012876,2]
[344750192,1733767846658,-500.0,0.00012876,2]
[344750193,1733767846667,-500.0,0.00012876,2]
[344750194,1733767846677,-502.05296852,0.00012876,2]
[344750195,1733767846686,-500.0,0.00012876,2]
[344750196,1733767846695,-622.13,0.00012876,2]
[344750197,1733767846704,-500.00000133,0.00012876,2]
[344750198,1733767846713,-500.0,0.00012876,2]
[344750199,1733767846722,-522.65048486,0.00012876,2]
[344750200,1733767846732,-152.31202386,0.00012876,2]
[344750201,1733767846741,-503.98350182,0.00012876,2]
[344750202,1733767846751,-500.0,0.00012876,2]
[344750203,1733767846760,-500.0,0.00012876,2]
[344750204,1733767846769,-500.0,0.00012876,2]
[344750205,1733767846779,-500.0,0.00012876,2]
[344750206,1733767846788,-500.0,0.00012876,2]
[344750207,1733767846798,-294.55128689,0.00012876,2]
[344750208,1733767846807,-502.14380622,0.00012876,2]
[344750209,1733767846816,-500.0,0.00012876,2]
[344750210,1733767846826,-500.0,0.00012876,2]